Cogmind - Beta 16 @@@ ROGUE MODE // 2026.01.14 @ 23:31:11 Player: opdo Result: Destroyed by Y-45 Defender with Beam Rifle Performance ------------- Evolutions (0) 0 Regions Visited (2) 400 Robots Destroyed (19) 95 Value Destroyed (452) 452 Prototype IDs (0) 0 Alien Tech Used (0) 0 Bonus (0) 0 TOTAL SCORE: 947 Bonus ------- None Cogmind --------- Core Integrity 0/250 Matter 268/300 Energy 88/100 System Corruption 0% Temperature Cool (9) Movement Rolling (115) Ox1 Location -10/Mines Parts ------- > --- POWER (1) -------- (None) > --- PROPULSION (2) --- Compact Wheel > --- UTILITY (2) ------ Large Storage Unit Power Shielding > --- WEAPON (2) ------- Light Assault Rifle Grenade Launcher > --- INVENTORY (15) --- Light Ion Engine Light Ion Engine Aluminum Leg Aluminum Leg Small Storage Unit High-capacity Storage Unit High-capacity Matter Pod (200) Improved Terrain Scanner Small Laser Small Laser Small Laser Light Assault Rifle Light Assault Rifle Light Assault Rifle Mining Laser Peak State ------------ > --- POWER ------------ Ion Engine > --- PROPULSION ------- Aluminum Leg Compact Wheel > --- UTILITY ---------- Improved Heat Sink Large Storage Unit > --- WEAPON ----------- Light Assault Rifle Light Assault Rifle > --- INVENTORY -------- Light Ion Engine Light Ion Engine Aluminum Leg Aluminum Leg Small Storage Unit High-capacity Storage Unit Improved Terrain Scanner Small Laser Small Laser Small Laser Light Assault Rifle Light Assault Rifle Grenade Launcher Mining Laser [Rating: 10] Favorites ----------- Power Ion Engine Engine Ion Engine Propulsion Light Treads Treads Light Treads Leg Aluminum Leg Wheel Compact Wheel Utility Large Storage Unit Device Seismic Detector Storage Large Storage Unit Protection Power Shielding Weapon Light Assault Rifle Ballistic Gun Light Assault Rifle Launcher Grenade Launcher Build | -11 -10 -10 ------- Run | Yrd Mat Min Slots Evolved . | . . . Power . | . . . Propulsion . | . . . Utility . | . . . Weapon . | . . . Parts Attached 14 | 7 6 1 Power 1 | 1 . . Engine 1 | 1 . . Core . | . . . Reactor . | . . . Propulsion 4 | 2 2 . Treads 2 | 2 . . Leg 1 | . 1 . Wheel 1 | . 1 . Hover . | . . . Flight . | . . . Utility 5 | 2 3 . Device 2 | 1 1 . Storage 2 | 1 1 . Processor . | . . . Hackware . | . . . Protection 1 | . 1 . Artifact . | . . . Weapon 4 | 2 1 1 Energy Gun . | . . . Energy Cannon . | . . . Ballistic Gun 3 | 2 1 . Ballistic Cannon . | . . . Launcher 1 | . . 1 Special Weapon . | . . . Impact Weapon . | . . . Slashing Weapon . | . . . Piercing Weapon . | . . . Special Melee Weapon . | . . . Unidentified Prototypes . | . . . Parts Lost 4 | . 2 2 Power 1 | . . 1 Propulsion 2 | . 1 1 Utility 1 | . 1 . Weapon . | . . . Highest Loss Streak 2 | . 1 2 To Critical Strikes . | . . . Average Backups 8 | 3 9 14 Power 1 | . 2 2 Propulsion 1 | . 1 2 Utility 1 | . 2 3 Weapon 3 | 1 3 7 Tool/Special . | . . . Unused Backups 12 | . . 12 Power 2 | . . 2 Propulsion 2 | . . 2 Utility 3 | . . 3 Weapon 5 | . . 5 Tool/Special . | . . . Average Slot Usage (%) 95 | . 95 96 Engine 13 | . 14 12 Treads 13 | . 15 . Leg 5 | . 4 12 Wheel 6 | . 6 14 Device 8 | . 9 . Storage 14 | . 14 14 Protection 4 | . 2 14 Ballistic Gun 27 | . 28 26 Peak Build Rating 10 | 7 10 8 Average Rating 7 | 5 7 7 On Entrance 5 | . 7 8 Avg Prop Armor Cover (%) 10 | . 10 10 Naked Turns . | . . . Heaviest Build 28 | 13 28 28 Greatest Support 40 | 40 40 16 Greatest Overweight (x) 1 | . 1 1 Average Overweight (x) . | . . 1 Largest Inventory Capacity 15 | 8 15 15 Average Capacity 12 | 7 13 15 Most Carried 15 | 6 15 15 Average Carried 8 | 3 9 14 Final Capacity 15 | 8 15 15 Final Carried 15 | 6 14 15 Class Distribution -------------------- 100% | Mutant Dominant Class ---------------- Mutant | -10/Materials Mutant | -10/Mines Resources | -11 -10 -10 ----------- Run | Yrd Mat Min Matter Collected 449 | 287 146 16 Remotely . | . . . Salvage Created 547 | 77 423 47 Parts 41 | 10 26 5 Haulers Intercepted . | . . . Recyclers Shooed 2 | 1 1 . Parts Field Recycled . | . . . Retrieved Matter . | . . . Parts Self-Destructed . | . . . Prevented . | . . . Parts Restored . | . . . Kills | -11 -10 -10 ------- Run | Yrd Mat Min Combat Hostiles Destroyed 13 | . 12 1 Guns 13 | . 12 1 Classes Destroyed 6 | 1 3 2 Worker 1 | . . 1 Tunneler 4 | 4 . . Watcher 1 | . 1 . Swarmer 3 | . 3 . Grunt 9 | . 9 . Sentry 1 | . . 1 Best Kill Streak 7 | 3 7 2 Combat Bots Only 7 | . 7 1 Max Kills in Single Turn 2 | 1 1 2 Gunslinging . | . . . Exploded . | . . . Melee . | . . . Uniques/NPCs Destroyed . | . . . Combat | -11 -10 -10 -------- Run | Yrd Mat Min Hostile Shots Fired 99 | . 78 21 Missed 23 | . 17 6 Hits 76 | . 61 15 Projectile 76 | . 61 15 Critical Strikes 2 | . 1 1 Actively Blocked 1 | . 1 . Damage Taken 965 | . 741 224 Core 252 | . 161 91 Absorbed by Shields . | . . . Redirected to Shielding 17 | . 9 8 Core Remaining (%) 100 | 100 . . Volleys Fired 79 | 11 62 6 Largest 2 | 2 2 2 Hottest 50 | 40 40 50 Shots Fired 158 | 22 124 12 Gun 156 | 22 124 10 Cannon . | . . . Launcher 2 | . . 2 Special . | . . . Kinetic 156 | 22 124 10 Thermal . | . . . Explosive 2 | . . 2 Electromagnetic . | . . . Robot Hit Streak 24 | 12 24 4 Robot Miss Streak 4 | 4 3 1 Penetration Max . | . . . Secondary Targets 4 | . 4 . Max Gunslinging Chain 1 | . 1 . Shots Hit Robots 118 | 15 94 9 Core Hits 42 | 8 29 5 Critical Kills . | . . . Critical Parts Destroyed 4 | 2 2 . Critical Strikes 4 | 2 2 . Destroy 4 | 2 2 . Melee Attacks . | . . . Impact . | . . . Slashing . | . . . Piercing . | . . . Sneak Attacks . | . . . Combat Hostiles . | . . . Follow-up Attacks . | . . . Damage Inflicted 969 | 112 746 111 Guns 901 | 111 733 57 Cannons . | . . . Explosions 54 | . . 54 Melee . | . . . Ramming 14 | 1 13 . Kinetic 901 | 111 733 57 Thermal . | . . . Explosive 54 | . . 54 Electromagnetic . | . . . Impact . | . . . Slashing . | . . . Piercing . | . . . Highest Corruption . | . . . Average Corruption . | . . . Corruption Purged . | . . . Corruption Blocked . | . . . Overload Shots . | . . . Overflow Damage . | . . . Projectiles . | . . . Explosions . | . . . Melee . | . . . Knockbacks . | . . . Impact . | . . . Kinetic . | . . . Secondary . | . . . Self-Inflicted Damage 6 | . 6 . Shots . | . . . Rammed 4 | 1 3 . Targets Rammed 4 | 1 3 . Kicked . | . . . Crushed . | . . . Highest Temperature 36 | . 25 36 Average Temperature 10 | . 9 26 Received Heat Transfer 450 | . 351 99 Siege Activations . | . . . Martial Activations . | . . . Shielding Activations . | . . . Robots Disrupted . | . . . Combat Hostiles . | . . . Robots Corrupted . | . . . Combat Hostiles . | . . . Parts Fried . | . . . Impact Corruptions . | . . . Robots Melted . | . . . Combat Hostiles . | . . . Parts Melted . | . . . Heat Transferred . | . . . Parts Sabotaged . | . . . Parts Stolen . | . . . Parts Stripped . | . . . Power Chain Reactions . | . . . Alert | -11 -10 -10 ------- Run | Yrd Mat Min Maximum Alert Level . | . . . Low Security (%) 100 | 100 100 100 Level 1 . | . . . Level 2 . | . . . Level 3 . | . . . Level 4 . | . . . Level 5 . | . . . High Security . | . . . Max Security . | . . . Peak Influence 189 | 10 189 60 Initial 60 | . . 60 Average 58 | . 76 44 Influence Increases 405 | 20 346 39 Destroy 0b10 Robot/C 260 | . 240 20 Destroy 0b10 Robot/NC 30 | 20 5 5 Destroy Leader 52 | . 52 . Successful Hack 4 | . 4 . Destroy Structure 14 | . . 14 Lose Combat Pursuer 45 | . 45 . Influence Decreases 356 | 20 190 146 Entered New Map 96 | . . 96 Time Decay 220 | 20 170 30 Lost Part 40 | . 20 20 Squads Dispatched 3 | . 3 . Investigation 2 | . 2 . Extermination . | . . . Reinforcement 1 | . 1 . Assault . | . . . Garrison . | . . . Intercept . | . . . Searches Triggered . | . . . Construction Impeded . | . . . Haulers Reinforced . | . . . Active Scanning Responses . | . . . Cargo Convoy Interrupts . | . . . Stealth | -11 -10 -10 --------- Run | Yrd Mat Min Distress Signals 1 | . 1 . Communications Jammed . | . . . Distress Signals . | . . . Times Spotted 23 | . 21 2 Peak Tracking Total 5 | . 5 2 Tactical Retreats 2 | . 2 . Traps | -11 -10 -10 ------- Run | Yrd Mat Min Traps Triggered 2 | . 2 . Indirectly . | . . . Trap Hack Attempts . | . . . Triggered . | . . . Disarmed . | . . . Reprogrammed . | . . . Reused . | . . . Traps Extracted . | . . . Installed . | . . . Triggered . | . . . Machines | -11 -10 -10 ---------- Run | Yrd Mat Min Machines Disabled . | . . . Max in Single Turn . | . . . Machines Repaired . | . . . Machines Dismantled . | . . . Machines Sabotaged . | . . . Overloaded Fab Kills . | . . . Hacking | -11 -10 -10 --------- Run | Yrd Mat Min Machines Accessed 1 | . 1 . Terminals 1 | . 1 . Fabricators . | . . . Repair Stations . | . . . Recycling Units . | . . . Scanalyzers . | . . . Garrison Access . | . . . Total Hacks 6 | . 6 . Successful 2 | . 2 . Failed 4 | . 4 . Catastrophic 1 | . 1 . Database Lockouts . | . . . Manual 6 | . 6 . Terminals 6 | . 6 . Fabricators . | . . . Repair Stations . | . . . Recycling Units . | . . . Scanalyzers . | . . . Garrison Access . | . . . Terminal Hacks . | . . . Fabricator Hacks . | . . . Repair Station Hacks . | . . . Recycling Unit Hacks . | . . . Scanalyzer . | . . . Garrison Access Hacks . | . . . Unauthorized Hacks 2 | . 2 . Terminals 2 | . 2 . Botnet 1 | . 1 . Skim 1 | . 1 . Fabricators . | . . . Repair Stations . | . . . Recycling Units . | . . . Scanalyzers . | . . . Garrison Access . | . . . Data Cores Recovered . | . . . Used . | . . . Hacking Detections 1 | . 1 . Full Trace Events . | . . . Feedback Events . | . . . Feedback Blocked . | . . . Robot Schematics Acquired . | . . . Robots Built . | . . . Authchips . | . . . Time . | . . . Total Robot Build Rating . | . . . Part Schematics Acquired . | . . . Parts Built . | . . . Authchips . | . . . Time . | . . . Total Part Build Rating . | . . . Part Studies Acquired . | . . . Parts Repaired . | . . . Time . | . . . Parts Recycled . | . . . Recycled Matter . | . . . Retrieved Matter . | . . . Retrieved Components . | . . . Parts Scanalyzed . | . . . Part Schematics Acquired . | . . . Parts Damaged . | . . . Bothacking | -11 -10 -10 ------------ Run | Yrd Mat Min Used RIF Installer . | . . . Robots Hacked . | . . . Non-combat . | . . . Combat . | . . . Robot Hacks Applied . | . . . Relay Couplers Released . | . . . Fabnet Peak Effective % . | . . . Robots Rewired . | . . . Allies Hacked . | . . . Hacks Repelled . | . . . Allies | -11 -10 -10 -------- Run | Yrd Mat Min Total Allies . | . . . Largest Group . | . . . Highest-Rated Group . | . . . Highest-Rated Ally . | . . . Total Orders . | . . . Ally Attacks . | . . . Total Damage . | . . . Kills . | . . . Allies Corrupted . | . . . Allies Melted . | . . . Intel | -11 -10 -10 ------- Run | Yrd Mat Min Active Infowar (turns) 327 | 49 278 . Seismic 327 | 49 278 . Robot Analysis Total . | . . . Derelict Logs Recovered . | . . . Drone Launches . | . . . Drone Recoveries . | . . . Exploration | -11 -10 -10 ------------- Run | Yrd Mat Min Turns Passed 861 | 169 620 72 Spaces Moved 430 | 79 306 45 Core 3 | 3 . . Treads 233 | 76 157 . Legs . | . . . Wheels 194 | . 149 45 Hover . | . . . Flight . | . . . Fastest Speed 50 | 50 115 115 Average Speed 139 | 155 139 115 Slowest Speed 240 | 160 240 115 Overloaded Moves . | . . . Propulsion Burnouts . | . . . Robots Hopped . | . . . Potential Cave-ins . | . . . Cave-ins Triggered . | . . . Exploration Rate (%) 29 | 5 65 17 Regions Visited 2 Branch Regions 1 Pre-discovered Areas . | . . . Known Exits Taken . | . . . Unknown Exits Taken 2 | 1 1 . Scrap Searched . | . . . Spaces Dug . | . . . Terrain Destroyed 14 | . . 14 Melee . | . . . Projectile . | . . . AOE 14 | . . 14 Terrain Rammed . | . . . Walls Destroyed . | . . . Machines Disabled . | . . . Actions | -11 -10 -10 --------- Run | Yrd Mat Min Total 557 | 103 397 57 Wait 16 | . 12 4 Move 428 | 78 305 45 Hop . | . . . Pick Up 15 | 6 8 1 Fast Attach 8 | 7 1 . Attach 1 | . 1 . Detach . | . . . Swap 5 | . 4 1 Drop 1 | . 1 . Fire 79 | 11 62 6 Melee . | . . . Ram 1 | . 1 . Kick . | . . . Crush 3 | 1 2 . Escape Stasis . | . . . Rewire . | . . . Trap . | . . . Miscellaneous . | . . . Route ------- -11/Scrapyard -10/Materials (discovered 3 exits: [*Mat x2] / [*Min]) -10/Mines History --------- Turn | Location | Event 19 | -11/Scrapyard | Discovered new exit (range 15) 170 | -11/Scrapyard | Entered Materials 304 | -10/Materials | Build established: Mutant 314 | -10/Materials | Discovered new exit (range 11) 529 | -10/Materials | Destroyed 7 combat bots 645 | -10/Materials | Discovered new exit (range 11) 670 | -10/Materials | Derelicts attacked the area 676 | -10/Materials | Core integrity fell below 50% 752 | -10/Materials | Discovered new exit (range 8) 790 | -10/Materials | Entered Mines 853 | -10/Mines | Core integrity fell below 20% 862 | -10/Mines | Destroyed by Y-45 Defender with Beam Rifle Last Messages --------------- 00760_ K-01 Serf collects debris. 00769_ R-06 Scavenger collects Hover Unit. 00770_ W-16 Scout sends out distress signal. 00773_ R-06 Scavenger collects Lgt. Ion Engine. LOCATION=UNKNOWN GOAL=ESCAPE Something is scanning the area. 00795_ T-07 Excavator is excavating. 00795_ Extracted 16 matter. 00799_ T-07 Excavator is excavating. 00800_ Acquired Hcp. Matter Pod. 00807_ T-07 Excavator is excavating. 00826_ K-01 Serf collects debris. 00852_ Aluminum Leg destroyed. 00852_ Critical hit (Burn: +37). 00855_ Ion Engine destroyed. 00856_ K-01 Serf collects debris. 00858_ K-01 Serf destroyed. 00862_ Y-45 Defender destroyed. 00862_ K-01 Serf destroyed. Map ----- +----------------------------------------------------+ | ????????????????????????????????????? | | ????????????????????????????????????? | | ????????????????????????????????????? | | ????????????????????????????????????? | | ????????????????????????????????????? | | ????????????????????????????????????? | | ????????????????????????????????????? | | ????????????????????????????????????? | | ????????????????????????????????????? | | ?????????# ????????????????????????? | | ?????????# ????????????????????????? | | ?????????# ????????????????????????? | | ?????????# #???????????????????????? | | ?????????# =##?????????????????????? | | ?????????# !%#??????####???????????? | | ?????????# *#??##### ####????????? | | ?????????# ##?# ##???????? | | ?????????# ### !!!! #???????? | | ?????????# ## !!!! ##??????? | | ?????????# # ! !! # #??????? | | ??????????# # !! ## #?????? | | ??????# #### ### #?????? | | ??????# #######?# ###?????? | | ???????# ##???????# #???????? | | ???????# ### ## #???????? #???????? | | ???????????#@ ## #????????###???????? | | ???????????# # #####??????????????? | | ????######?# #????????????? | | ???##" "## #######??????????????? | | ???#!] [[# #????????????????????? | | ???#]/ !!# Y!=#????????????????????? | | ????# ## [%*#????????????????????? | | ???###++## [ #???????????????????? | | ???# #???????????????????? | | ??# ???????????????????? | | ?# ## ???????????????????? | | ?# ## #??????????????? | | ?## ## #??????????????? | | ??## #####$ ???????????? | | ???# #?????#### "?????????? | | ???# #????????????????????? | | ???## ????????????????????? | | ????#### ???????????????????? | | ???????####### #??????????????????? | | ??????????????####??????????????????? | | ????????????????????????????????????? | | | | | | | | | +----------------------------------------------------+ Best States ------------- Heat Dissipation 39 Energy Generation 10 Energy Capacity 250 Matter Stores 300 Matter Capacity 300 Sight Range 16 Terrain Scan Density 10 Power Shielding 33 Evasion (%) 40 Recoil Reduction 2 Item Schematics ----------------- None Robot Schematics ------------------ None Fabricated ------------ Nothing Repaired ---------- Nothing Studied --------- None Alien Tech Used ----------------- None Achievements -------------- None Challenges ------------ None Game ------ Seed ProcessingDecoyDeck Manual? 0 Play Time 00:05:10 Cumulative 143.1 hours Start 2026.01.14 @ 23:25:20 End 2026.01.14 @ 23:31:11 Sessions 1 Manual Loads 0 Difficulty Rogue Special Mode None Game No. 356 Rogue 354 Adventurer 2 Explorer 0 Win Type - Total 1 Types 1/0/0/0/0/0/0/0/0/0 Lore% 81 Gallery% 64 Achievement% 44 Wizard Run 0 Options --------- Layout 2 ASCII 0 Keyboard 0 Movement Numpad Keybinds 0 Fullscreen 2 Font 24/Smallcaps Map View 50x44 Zoom Use 0% Tactical HUD 1 Map Filters NONE Filters NONE Steam 1 RUN: 2b3d241d-efe8-4114-bf3c-6a23ab4667cb